bitfinex/quotes_BTCUSD_20241022
["timestamp","ask_amount","ask_price","bid_price","bid_amount"]
[1729576355182,0.00258349,67584.0,67583.0,0.66875073]
[1729576355906,0.00258349,67584.0,67583.0,0.37819452]
[1729576356107,0.00158349,67584.0,67583.0,0.37019452]
[1729576356471,0.00258349,67584.0,67583.0,0.37819452]
[1729576357477,0.00158349,67584.0,67583.0,0.37019452]
[1729576357895,0.00158349,67584.0,67583.0,0.37519452]
[1729576358096,0.00158349,67584.0,67583.0,0.36219452]
[1729576358097,0.00058349,67584.0,67583.0,0.36219452]
[1729576358302,0.00058349,67584.0,67583.0,0.36519452]
[1729576358602,0.00058349,67584.0,67583.0,0.36619452]
[1729576358732,0.00058349,67584.0,67583.0,0.36319452]
[1729576359145,0.00058349,67584.0,67583.0,0.36219452]
[1729576359945,0.00158349,67584.0,67583.0,0.36219452]
[1729576363501,0.00158349,67584.0,67583.0,0.47515073]
[1729576363615,0.00158349,67584.0,67583.0,0.572668]
[1729576365945,0.00158349,67584.0,67583.0,0.47515073]
[1729576366265,0.00158349,67584.0,67583.0,0.36219452]
[1729576371399,0.00058349,67584.0,67583.0,0.36219452]
[1729576371756,0.00058349,67584.0,67583.0,0.36519452]
[1729576371962,0.00058349,67584.0,67583.0,0.64685073]
[1729576372143,0.00058349,67584.0,67583.0,0.74725619]
[1729576372345,0.00058349,67584.0,67583.0,0.7603549]
[1729576372593,0.00058349,67584.0,67583.0,0.7613549]
[1729576373373,0.00058349,67584.0,67583.0,0.65794944]
[1729576375199,0.00058349,67584.0,67583.0,0.65795085]
[1729576378008,0.00058349,67584.0,67583.0,0.64685073]
[1729576378216,0.00058349,67584.0,67583.0,0.65794985]
[1729576378651,0.00058349,67584.0,67583.0,0.64685073]
[1729576378858,0.00058349,67584.0,67583.0,0.65794932]
[1729576385613,0.00058349,67584.0,67583.0,0.65294932]
[1729576385829,0.00058349,67584.0,67583.0,0.65794932]
[1729576387561,0.00058349,67584.0,67583.0,0.46799311]
[1729576388956,0.00058349,67584.0,67583.0,0.45189452]
[1729576389127,0.00058349,67584.0,67583.0,0.46299151]
[1729576390145,0.00058349,67584.0,67583.0,0.37129151]
[1729576391455,0.00058349,67584.0,67583.0,0.21832551]
[1729576392127,0.00058349,67584.0,67583.0,0.36629151]
[1729576392333,0.00058349,67584.0,67583.0,0.36529151]
[1729576392542,0.00158349,67584.0,67583.0,0.36529151]
[1729576392743,0.00158349,67584.0,67583.0,0.37029151]
[1729576392944,0.00158349,67584.0,67583.0,0.51069015]
[1729576393400,0.00158349,67584.0,67583.0,0.37029151]
[1729576393894,0.00158349,67584.0,67583.0,0.36829151]
[1729576394062,0.00058349,67584.0,67583.0,0.36829151]
[1729576394887,0.00258349,67584.0,67583.0,0.37029151]
[1729576395585,0.00058349,67584.0,67583.0,0.37029151]
[1729576395792,0.00058349,67584.0,67583.0,0.37129151]
[1729576396441,0.00058349,67584.0,67583.0,0.36019452]
[1729576396642,0.00058349,67584.0,67583.0,0.37129395]
[1729576400776,0.00058349,67584.0,67583.0,0.37029395]
[1729576401226,0.00058349,67584.0,67583.0,0.36929395]
[1729576401442,0.00058349,67584.0,67583.0,0.37129395]
[1729576403953,0.00058349,67584.0,67583.0,0.37129212]
[1729576405075,0.00058349,67584.0,67583.0,0.36629212]
[1729576405298,0.00058349,67584.0,67583.0,0.37029212]
[1729576405712,0.00258349,67584.0,67583.0,0.37029212]
[1729576406459,0.00258349,67584.0,67583.0,0.21532612]
[1729576406728,0.00258349,67584.0,67583.0,0.20422852]
[1729576407138,0.00358349,67584.0,67583.0,0.20422852]
[1729576409106,0.30812417,67584.0,67583.0,0.05526937]
[1729576409303,0.30812417,67584.0,67583.0,0.001674]
[1729576409558,0.30809165,67584.0,67583.0,0.001674]
[1729576409753,0.40530696,67584.0,67583.0,0.001674]
[1729576410525,0.40400947,67584.0,67583.0,0.001674]
[1729576410727,0.15154749,67584.0,67583.0,0.001674]
[1729576411574,0.21806569,67584.0,67583.0,0.001674]
[1729576412605,0.15154749,67584.0,67583.0,0.001674]
[1729576412811,0.21806569,67584.0,67583.0,0.001674]
[1729576413459,0.15154749,67584.0,67583.0,0.001674]
[1729576413687,0.21806569,67584.0,67583.0,0.001674]
[1729576414426,0.15154749,67584.0,67583.0,0.001674]
[1729576417513,0.19586528,67584.0,67583.0,0.001674]
[1729576417763,0.19486528,67584.0,67583.0,0.001674]
[1729576418010,0.22003431,67584.0,67583.0,0.002674]
[1729576418484,0.15354749,67584.0,67583.0,0.002674]
[1729576418996,0.22003431,67584.0,67583.0,0.002674]
[1729576419456,0.15854749,67584.0,67583.0,0.003674]
[1729576419908,0.22503431,67584.0,67583.0,0.003674]
[1729576421298,0.22500836,67584.0,67583.0,0.003674]
[1729576421763,0.15854749,67584.0,67583.0,0.003674]
[1729576427444,0.20284187,67584.0,67583.0,0.003674]
[1729576427657,0.15854749,67584.0,67583.0,0.003674]
[1729576428358,0.05487873,67584.0,67583.0,0.003674]
[1729576428849,0.05487873,67584.0,67583.0,0.06473869]
[1729576429057,0.01058349,67584.0,67583.0,0.06473869]
[1729576430253,0.01058349,67584.0,67583.0,0.54106384]
[1729576430488,0.01058349,67584.0,67583.0,0.54606384]
[1729576431922,0.00558349,67584.0,67583.0,0.54506384]
[1729576432329,0.00558349,67584.0,67583.0,0.55006384]
[1729576432637,0.00558349,67584.0,67583.0,0.6797011]
[1729576432867,0.00058349,67584.0,67583.0,0.6737011]
[1729576433103,0.00058349,67584.0,67583.0,0.55106384]
[1729576433324,0.00058349,67584.0,67583.0,0.54706384]
[1729576433569,0.00058349,67584.0,67583.0,0.54406384]
[1729576433807,0.00158349,67584.0,67583.0,0.55406384]
[1729576434034,0.00158349,67584.0,67583.0,0.55106384]
[1729576434495,0.00258349,67584.0,67583.0,0.56106384]
[1729576435181,0.00158349,67584.0,67583.0,0.55406384]
[1729576435660,0.00258349,67584.0,67583.0,0.56106384]
[1729576438700,0.00258349,67584.0,67583.0,0.67402005]
[1729576441933,0.00258349,67584.0,67583.0,0.71953866]
[1729576442154,0.00258349,67584.0,67583.0,0.67402005]
[1729576446287,0.00258349,67584.0,67583.0,0.67602005]
[1729576446731,0.00258349,67584.0,67583.0,0.67402005]
[1729576447392,0.00258349,67584.0,67583.0,0.67602005]
[1729576447618,0.00258349,67584.0,67583.0,0.92697626]
[1729576447885,0.00258349,67584.0,67583.0,1.07593541]
[1729576448578,0.00258349,67584.0,67583.0,1.06893541]
[1729576448815,0.00158349,67584.0,67583.0,1.06893541]
[1729576449059,0.00258349,67584.0,67583.0,1.07493541]
[1729576449767,0.00158349,67584.0,67583.0,1.06493541]
[1729576449994,0.00258349,67584.0,67583.0,1.07893541]
[1729576452731,0.00258349,67584.0,67583.0,0.9659792]
[1729576452939,0.00258349,67584.0,67583.0,0.81702005]
[1729576453201,0.00258349,67584.0,67583.0,0.81502005]
[1729576453626,0.00258349,67584.0,67583.0,0.79202005]
[1729576454056,0.00258349,67584.0,67583.0,0.79402005]
[1729576455087,0.00258349,67584.0,67583.0,0.79202005]
[1729576455310,0.00258349,67584.0,67583.0,0.78702005]
[1729576456353,0.00258349,67584.0,67583.0,0.78202005]
[1729576456557,0.00258349,67584.0,67583.0,0.78702005]
[1729576456967,0.00258349,67584.0,67583.0,0.78202005]
[1729576457176,0.00258349,67584.0,67583.0,0.78702005]
[1729576458514,0.00258349,67584.0,67583.0,0.79202005]
[1729576459131,0.00258349,67584.0,67583.0,0.78702005]
[1729576459851,0.00258349,67584.0,67583.0,0.79202005]
[1729576462615,0.00258349,67584.0,67583.0,1.04875167]
[1729576462828,0.00258349,67584.0,67583.0,1.05075167]
[1729576463281,0.00258349,67584.0,67583.0,0.93779546]
[1729576463718,0.00258349,67584.0,67583.0,1.07375167]
[1729576464349,0.00258349,67584.0,67583.0,1.11990741]
[1729576469346,0.00258349,67584.0,67583.0,1.11790741]
[1729576469575,0.00258349,67584.0,67583.0,1.11990741]
[1729576472607,0.00258349,67584.0,67583.0,1.81990741]
[1729576473941,0.00258349,67584.0,67583.0,1.81790741]
[1729576474364,0.00258349,67584.0,67583.0,1.81990741]
[1729576475898,0.00258349,67584.0,67583.0,2.37438567]
[1729576476105,0.00158349,67584.0,67583.0,2.36838567]
[1729576476324,0.00058349,67584.0,67583.0,2.35438567]
[1729576476554,0.00258349,67584.0,67583.0,2.38238567]
[1729576476742,0.000827,67605.0,67604.0,0.15292]
[1729576476997,0.000827,67605.0,67604.0,0.41483536]
[1729576477424,0.000827,67605.0,67604.0,0.47897029]
[1729576479411,0.000827,67605.0,67604.0,0.48297029]
[1729576491857,0.000827,67605.0,67604.0,0.49405668]
[1729576493738,0.000827,67605.0,67604.0,0.38110047]
[1729576493960,0.000827,67605.0,67604.0,0.49405668]
[1729576498879,0.000827,67605.0,67604.0,0.48297029]
[1729576501080,0.000827,67605.0,67604.0,0.49406395]
[1729576501301,0.000827,67605.0,67604.0,0.48297029]
[1729576501924,0.000827,67605.0,67604.0,0.49406479]
[1729576503629,0.000827,67605.0,67604.0,0.49406855]
[1729576503844,0.000827,67605.0,67604.0,0.63223061]
[1729576504075,0.000827,67605.0,67604.0,0.72853061]
[1729576504282,0.000827,67605.0,67604.0,0.92597744]
[1729576504493,0.000827,67605.0,67604.0,0.70332476]
[1729576505338,0.000827,67605.0,67604.0,0.70032476]
[1729576505575,0.000827,67605.0,67604.0,0.80242476]
[1729576505788,0.000827,67605.0,67604.0,1.07638391]
[1729576505994,0.000827,67605.0,67604.0,1.11358846]
[1729576506180,0.000827,67605.0,67604.0,1.1114902]
[1729576506421,0.000827,67605.0,67604.0,1.06528565]
[1729576506671,4.188e-05,67605.0,67604.0,1.10248862]
[1729576506872,4.188e-05,67605.0,67604.0,1.10148862]
[1729576507084,4.188e-05,67605.0,67604.0,1.11548862]
[1729576508139,4.188e-05,67605.0,67604.0,1.12348862]
[1729576509086,4.188e-05,67605.0,67604.0,1.55324862]
[1729576509290,4.188e-05,67605.0,67604.0,1.56724862]
[1729576509698,4.188e-05,67605.0,67604.0,1.55924862]
[1729576510072,4.188e-05,67605.0,67604.0,1.57324862]
[1729576511327,4.188e-05,67605.0,67604.0,1.57124862]
[1729576511568,4.188e-05,67605.0,67604.0,1.52504565]
[1729576512061,4.188e-05,67605.0,67604.0,1.41208944]
[1729576512270,4.188e-05,67605.0,67604.0,1.52504565]
[1729576513238,4.188e-05,67605.0,67604.0,1.41208944]
[1729576514119,4.188e-05,67605.0,67604.0,1.38908944]
[1729576514327,4.188e-05,67605.0,67604.0,1.41208944]
[1729576516454,4.188e-05,67605.0,67604.0,0.94277408]
[1729576516671,4.188e-05,67605.0,67604.0,0.83777408]
[1729576517584,4.188e-05,67605.0,67604.0,0.82377408]
[1729576517806,4.188e-05,67605.0,67604.0,0.83777408]
[1729576518238,4.188e-05,67605.0,67604.0,0.82377408]
[1729576518901,4.188e-05,67605.0,67604.0,0.80977408]
[1729576519153,0.00062224,67607.0,67606.0,0.147915]
[1729576519434,0.00062224,67607.0,67606.0,0.29687415]
[1729576519655,0.00062224,67607.0,67606.0,0.36322481]
[1729576520097,0.32143524,67607.0,67606.0,0.21530981]
[1729576520524,0.32143524,67607.0,67606.0,0.21930981]
[1729576521176,0.36574102,67607.0,67606.0,0.21730981]
[1729576521390,0.32143524,67607.0,67606.0,0.21730981]
[1729576521615,0.38792807,67607.0,67606.0,0.21930981]
[1729576522061,0.57362461,67607.0,67606.0,0.21730981]
[1729576522281,0.57442879,67607.0,67606.0,0.21730981]
[1729576522485,0.57342879,67607.0,67606.0,0.15095915]
[1729576522707,0.48477168,67607.0,67606.0,0.14895915]
[1729576523128,0.48577168,67607.0,67606.0,0.14895915]
[1729576523576,0.48477168,67607.0,67606.0,0.14895915]
[1729576523803,0.32123942,67607.0,67606.0,0.14895915]
[1729576524027,0.32323942,67607.0,67606.0,0.14995915]
[1729576524678,0.38966232,67607.0,67606.0,0.14995915]
[1729576525513,0.38866232,67607.0,67606.0,0.14995915]
[1729576525966,0.38966232,67607.0,67606.0,0.15095915]
[1729576526610,0.32323942,67607.0,67606.0,0.15095915]
[1729576528651,0.36749623,67607.0,67606.0,0.15095915]
[1729576529640,0.36731815,67607.0,67606.0,0.15095915]
[1729576530090,0.36731815,67607.0,67606.0,0.21729413]
[1729576532358,0.32306134,67607.0,67606.0,0.21729413]
[1729576532562,0.32306134,67607.0,67606.0,0.15095915]
[1729576534292,0.32306134,67607.0,67606.0,0.15085915]
[1729576540978,0.15016134,67607.0,67606.0,0.15085915]
[1729576541165,0.15016134,67607.0,67606.0,0.21724861]
[1729576541409,0.15016134,67607.0,67606.0,0.15085915]
[1729576549851,0.15016134,67607.0,67606.0,0.22965915]
[1729576550037,0.15016134,67607.0,67606.0,0.29602497]
[1729576550594,0.00224834,67607.0,67606.0,0.29602497]
[1729576550855,0.15016134,67607.0,67606.0,0.29602497]
[1729576551256,0.00224834,67607.0,67606.0,0.29602497]
[1729576551711,0.14916134,67607.0,67606.0,0.29502497]
[1729576552132,0.14916134,67607.0,67606.0,0.29402497]
[1729576552340,0.00224834,67607.0,67606.0,0.29402497]
[1729576552573,0.15016134,67607.0,67606.0,0.29402497]
[1729576553507,0.15016134,67607.0,67606.0,0.29567697]
[1729576559580,0.15016134,67607.0,67606.0,0.21687697]
[1729576559781,0.19437868,67607.0,67606.0,0.21687697]
[1729576559983,0.21648736,67607.0,67606.0,0.21687697]
[1729576560635,0.31374052,67607.0,67606.0,0.21687697]
[1729576562738,0.42428389,67607.0,67606.0,0.21687697]
[1729576563581,0.31374052,67607.0,67606.0,0.21687697]
[1729576567882,0.31393713,67607.0,67606.0,0.21687697]
[1729576570365,0.31393713,67607.0,67606.0,0.31277697]
[1729576570366,0.06880006,67607.0,67606.0,0.31277697]
[1729576570476,0.15016134,67607.0,67606.0,0.39387697]
[1729576570730,0.06879973,67607.0,67606.0,0.39387697]
[1729576571209,0.21671273,67607.0,67606.0,0.39387697]
[1729576571455,0.15016134,67607.0,67606.0,0.39387697]
[1729576571693,0.21571273,67607.0,67606.0,0.39387697]
[1729576571936,0.14816134,67607.0,67606.0,0.39387697]
[1729576572158,0.23889696,67607.0,67606.0,0.39387697]
[1729576572377,0.40365666,67607.0,67606.0,0.39387697]
[1729576572891,0.40364015,67607.0,67606.0,0.39387697]
[1729576573139,0.40164015,67607.0,67606.0,0.39387697]
[1729576573372,0.40664015,67607.0,67606.0,0.39387697]
[1729576576500,0.25872715,67607.0,67606.0,0.39387697]
[1729576576769,0.31791733,67607.0,67606.0,0.39387697]
[1729576580451,0.17000433,67607.0,67606.0,0.39387697]
[1729576580708,0.31791733,67607.0,67606.0,0.39387697]
[1729576580964,0.17000433,67607.0,67606.0,0.39387697]
[1729576581176,0.17000433,67607.0,67606.0,0.39887697]
[1729576581177,0.00624834,67607.0,67606.0,0.39887697]
[1729576581381,0.00624834,67607.0,67606.0,0.54679197]
[1729576581806,0.00124834,67607.0,67606.0,0.54679197]
[1729576582218,0.00024834,67607.0,67606.0,0.54679197]
[1729576582429,0.00024834,67607.0,67606.0,0.54779197]
[1729576583937,0.00024834,67607.0,67606.0,0.39987697]
[1729576584559,0.00024834,67607.0,67606.0,0.54779197]
[1729576584560,0.04457873,67607.0,67606.0,0.54779197]
[1729576585190,0.04757873,67607.0,67606.0,0.54679197]
[1729576585644,0.05057873,67607.0,67606.0,0.54679197]
[1729576585855,0.04757873,67607.0,67606.0,0.54179197]
[1729576586065,0.05157873,67607.0,67606.0,0.54179197]
[1729576587369,0.0515752,67607.0,67606.0,0.54679197]
[1729576588413,0.0445752,67607.0,67606.0,0.54679197]
[1729576588628,0.0465752,67607.0,67606.0,0.54679197]
[1729576588838,0.0495752,67607.0,67606.0,0.54679197]
[1729576590518,0.00524834,67607.0,67606.0,0.54679197]
[1729576594637,0.00524834,67607.0,67606.0,0.57553294]
[1729576595079,0.00524834,67607.0,67606.0,0.55788456]
[1729576595502,0.00024834,67607.0,67606.0,0.55788456]
[1729576595715,0.00024834,67607.0,67606.0,0.55888456]
[1729576596197,0.00024834,67607.0,67606.0,0.55888429]
[1729576598015,0.00024834,67607.0,67606.0,0.59688429]
[1729576598229,0.00024834,67607.0,67606.0,0.84784344]
[1729576598482,0.00024834,67607.0,67606.0,0.89400829]
[1729576598720,0.00024834,67607.0,67606.0,0.96049476]
[1729576598928,0.00024834,67607.0,67606.0,0.89400829]
[1729576599140,0.00024834,67607.0,67606.0,0.90600829]
[1729576599355,0.00024834,67607.0,67606.0,0.89491597]
[1729576599587,0.00024834,67607.0,67606.0,1.33866597]
[1729576600465,0.00024834,67607.0,67606.0,1.35266597]
[1729576600677,0.00024834,67607.0,67606.0,1.33866597]
[1729576600890,0.00024834,67607.0,67606.0,1.35266597]
[1729576601124,0.00024834,67607.0,67606.0,1.33966597]
[1729576601553,0.00024834,67607.0,67606.0,1.35366597]
[1729576602194,0.00024834,67607.0,67606.0,1.30750112]
[1729576625562,0.00024834,67607.0,67606.0,1.35360482]
[1729576628729,0.00024834,67607.0,67606.0,1.35160482]
[1729576631595,0.00024834,67607.0,67606.0,1.46456103]
[1729576632141,0.00024834,67607.0,67606.0,1.35160482]
[1729576632352,0.00024834,67607.0,67606.0,1.46456103]
[1729576635196,0.00024834,67607.0,67606.0,0.98764567]
[1729576635420,0.00024834,67607.0,67606.0,0.73473067]
[1729576635421,0.08084834,67607.0,67606.0,0.73473067]
[1729576635629,0.34171755,67607.0,67606.0,0.68862697]
[1729576635859,0.08084834,67607.0,67606.0,0.68862697]
[1729576636315,0.08084834,67607.0,67606.0,0.60826115]
[1729576636533,0.08084834,67607.0,67606.0,0.67641864]
[1729576636737,0.08084834,67607.0,67606.0,0.68741864]
[1729576636924,0.08084834,67607.0,67606.0,0.67641864]
[1729576637191,0.08084834,67607.0,67606.0,0.66241864]
[1729576637407,0.08084834,67607.0,67606.0,0.67841864]
[1729576637616,0.08084834,67607.0,67606.0,0.67641864]
[1729576637826,0.08084834,67607.0,67606.0,0.66241864]
[1729576638255,0.08184834,67607.0,67606.0,0.66241864]
[1729576638679,0.08084834,67607.0,67606.0,0.66241864]
[1729576639115,0.08284834,67607.0,67606.0,0.66241864]
[1729576640009,0.08484834,67607.0,67606.0,0.66241864]
[1729576640991,0.32736134,67607.0,67606.0,0.66241864]
[1729576641227,0.17944834,67607.0,67606.0,0.66241864]
[1729576641693,0.17944834,67607.0,67606.0,0.59426115]
[1729576641919,0.17944834,67607.0,67606.0,0.66278536]
[1729576646074,0.32736134,67607.0,67606.0,0.66278536]
[1729576647252,0.17944834,67607.0,67606.0,0.66278536]
[1729576648178,0.32736134,67607.0,67606.0,0.66278536]
[1729576650417,0.17944834,67607.0,67606.0,0.66278536]
[1729576665029,0.00424834,67607.0,67606.0,0.66278536]
[1729576674568,0.26511755,67607.0,67606.0,0.66278536]
[1729576674780,0.26511755,67607.0,67606.0,0.59426115]
[1729576675216,0.26511755,67607.0,67606.0,0.66312749]
[1729576677342,0.15216134,67607.0,67606.0,0.66312749]
[1729576679556,0.19644176,67607.0,67606.0,0.66312749]
[1729576680603,0.3157369,67607.0,67606.0,0.66312749]
[1729576681027,0.1678239,67607.0,67606.0,0.66312749]
[1729576681237,0.00424834,67607.0,67606.0,0.66312749]
[1729576681680,0.25641975,67607.0,67606.0,0.66312749]
[1729576682558,0.00424834,67607.0,67606.0,0.66312749]
[1729576683262,0.09289961,67607.0,67606.0,0.66312749]
[1729576683739,0.40443654,67607.0,67606.0,0.66312749]
[1729576683943,0.16787227,67607.0,67606.0,0.66312749]
[1729576684153,0.16787227,67607.0,67606.0,0.59426115]
[1729576684364,0.16787227,67607.0,67606.0,0.66559371]
[1729576684605,0.31578527,67607.0,67606.0,0.66559371]
[1729576684837,0.16787227,67607.0,67606.0,0.66559371]
[1729576685499,0.27868636,67607.0,67606.0,0.66559371]
[1729576686167,0.16787227,67607.0,67606.0,0.66559371]
[1729576686399,0.27868636,67607.0,67606.0,0.66559371]
[1729576687776,0.16787227,67607.0,67606.0,0.66559371]
[1729576687991,0.16794375,67607.0,67606.0,0.66559371]
[1729576688203,0.27880625,67607.0,67606.0,0.66559371]
[1729576689132,0.16794375,67607.0,67606.0,0.66559371]
[1729576691219,0.25663594,67607.0,67606.0,0.66559371]
[1729576691678,0.16794375,67607.0,67606.0,0.66559371]
[1729576693028,0.16794887,67607.0,67606.0,0.66559371]
[1729576695094,0.53968404,67607.0,67606.0,0.51673456]
[1729576695316,0.42881808,67607.0,67606.0,0.51673456]
[1729576697348,0.31586187,67607.0,67606.0,0.51673456]
[1729576697787,0.31583997,67607.0,67606.0,0.51673456]
[1729576701720,0.42879618,67607.0,67606.0,0.51673456]
[1729576702352,0.42879618,67607.0,67606.0,0.48827059]
[1729576702787,0.42877193,67607.0,67606.0,0.48827059]
[1729576705118,0.42577193,67607.0,67606.0,0.48827059]
[1729576706117,0.42659793,67607.0,67606.0,0.48827059]
[1729576712574,0.42658074,67607.0,67606.0,0.48827059]
[1729576714186,0.53740423,67607.0,67606.0,0.48827059]
[1729576714418,0.42658074,67607.0,67606.0,0.48827059]
[1729576714860,0.53740496,67607.0,67606.0,0.48827059]
[1729576715734,0.42444875,67607.0,67606.0,0.48827059]
[1729576718214,0.27653575,67607.0,67606.0,0.71582974]
[1729576718662,0.31362453,67607.0,67606.0,0.71582974]
[1729576720014,0.31362453,67607.0,67606.0,0.63722974]
[1729576721800,0.16571153,67607.0,67606.0,0.63722974]
[1729576722014,0.31362453,67607.0,67606.0,0.63722974]
[1729576722875,0.16571153,67607.0,67606.0,0.63722974]
[1729576724477,0.31362453,67607.0,67606.0,0.63722974]
[1729576724940,0.42444875,67607.0,67606.0,0.63722974]
[1729576725849,0.42446615,67607.0,67606.0,0.63722974]
[1729576726322,0.42446615,67607.0,67606.0,0.48827059]
[1729576726323,0.42658074,67607.0,67606.0,0.48827059]
[1729576727519,0.31362453,67607.0,67606.0,0.48827059]
[1729576732089,0.42658074,67607.0,67606.0,0.48827059]
[1729576732327,0.42660794,67607.0,67606.0,0.48827059]
[1729576735495,0.43323065,67607.0,67606.0,0.48827059]
[1729576735704,0.43323137,67607.0,67606.0,0.48827059]
[1729576736134,0.26956626,67607.0,67606.0,0.48827059]
[1729576736357,0.43323333,67607.0,67606.0,0.48827059]
[1729576737283,0.32027712,67607.0,67606.0,0.48827059]
[1729576737505,0.27661282,67607.0,67606.0,0.65997059]
[1729576737719,0.16574141,67607.0,67606.0,0.65997059]
[1729576737932,0.27661359,67607.0,67606.0,0.65997059]
[1729576738813,0.42453336,67607.0,67606.0,0.65997059]
[1729576739017,0.27662036,67607.0,67606.0,0.65997059]
[1729576739671,0.31365441,67607.0,67606.0,0.65997059]
[1729576740529,0.31365441,67607.0,67606.0,0.58387059]
[1729576740770,0.31365441,67607.0,67606.0,0.48827059]
[1729576749058,0.31365441,67607.0,67606.0,0.58047059]
[1729576751948,0.31365441,67607.0,67606.0,0.48827059]
[1729576752186,0.42661062,67607.0,67606.0,0.48827059]
[1729576755289,0.42661062,67607.0,67606.0,0.51494703]
[1729576761388,0.42667609,67607.0,67606.0,0.51494703]
[1729576764696,0.31371988,67607.0,67606.0,0.51494703]
[1729576766412,0.31372003,67607.0,67606.0,0.51494703]
[1729576771364,0.31373425,67607.0,67606.0,0.51494703]
[1729576776225,0.31373477,67607.0,67606.0,0.51494703]
[1729576780610,0.31373477,67607.0,67606.0,0.51494703]
[1729576781265,0.31374078,67607.0,67606.0,0.51494703]
[1729576786321,0.31375577,67607.0,67606.0,0.51494703]
[1729576788606,0.16584277,67607.0,67606.0,0.51494703]
[1729576788822,0.27675312,67607.0,67606.0,0.75470618]
[1729576789269,0.16584277,67607.0,67606.0,0.75470618]
[1729576790158,0.27675312,67607.0,67606.0,0.75470618]
[1729576790377,0.25456232,67607.0,67606.0,0.83160618]
[1729576791267,0.25454111,67607.0,67606.0,0.83160618]
[1729576793258,0.16582252,67607.0,67606.0,0.83160618]
[1729576794604,0.16582252,67607.0,67606.0,1.16942759]
[1729576794842,0.00207434,67607.0,67606.0,1.05647138]
[1729576795279,0.00207434,67607.0,67606.0,1.06756867]
[1729576795760,0.00207434,67607.0,67606.0,1.05647138]
[1729576795981,0.00207434,67607.0,67606.0,0.97952118]
[1729576796170,0.00207434,67607.0,67606.0,0.83160618]
[1729576800906,0.00207434,67607.0,67606.0,0.97952118]
[1729576801097,0.00207434,67607.0,67606.0,0.83160618]
[1729576801383,0.00207434,67607.0,67606.0,0.97952118]
[1729576801867,0.00207434,67607.0,67606.0,1.09747739]
[1729576802082,0.00207434,67607.0,67606.0,0.98452118]
[1729576802967,0.000826,67607.0,67606.0,0.98452118]
[1729576803179,0.000826,67607.0,67606.0,0.98752118]
[1729576804500,0.000826,67607.0,67606.0,0.98952118]
[1729576805882,0.000826,67607.0,67606.0,1.13848033]
[1729576807309,0.000826,67607.0,67606.0,0.98952118]
[1729576811787,0.000826,67607.0,67606.0,1.08952118]
[1729576812033,0.000826,67607.0,67606.0,1.17367497]
[1729576812684,0.000826,67619.0,67618.0,0.55780142]
[1729576812903,0.000826,67619.0,67618.0,0.70676057]
[1729576813126,0.000826,67619.0,67618.0,0.85571972]
[1729576813604,0.000826,67628.0,67627.0,0.328769]
[1729576813820,0.000826,67628.0,67627.0,0.59068436]
[1729576815129,0.000826,67628.0,67627.0,0.60068436]
[1729576815585,0.000826,67628.0,67627.0,0.59968436]
[1729576815800,0.000826,67628.0,67627.0,0.6674789]
[1729576816956,0.000826,67628.0,67627.0,0.6754789]
[1729576817443,0.000826,67628.0,67627.0,0.89343511]
[1729576817645,0.000826,67628.0,67627.0,0.95196959]
[1729576817860,0.000826,67628.0,67627.0,0.97496959]
[1729576818321,0.000826,67628.0,67627.0,0.97696959]
[1729576818569,0.000826,67634.0,67633.0,0.331356]
[1729576818805,0.000826,67634.0,67633.0,1.01936465]
[1729576819060,0.000826,67634.0,67633.0,1.30371474]
[1729576819284,0.000826,67634.0,67633.0,1.42671474]
[1729576819764,0.000826,67634.0,67633.0,1.42471474]
[1729576821097,0.000826,67634.0,67633.0,1.43871474]
[1729576821320,0.000826,67634.0,67633.0,1.45271474]
[1729576821528,0.000826,67634.0,67633.0,1.42471474]
[1729576821962,0.000826,67634.0,67633.0,1.45271474]
[1729576822177,0.000826,67634.0,67633.0,1.43871474]
[1729576822377,0.000826,67634.0,67633.0,1.44071474]
[1729576822596,0.000826,67634.0,67633.0,1.45471474]
[1729576823270,0.000826,67634.0,67633.0,1.44071474]
[1729576823519,0.000826,67634.0,67633.0,1.45471474]
[1729576823757,0.000826,67634.0,67633.0,1.45271474]
[1729576825283,0.000826,67634.0,67633.0,1.45471474]
[1729576830939,0.000826,67634.0,67633.0,1.22880232]
[1729576831153,0.000826,67634.0,67633.0,1.45471474]
[1729576842155,0.000826,67634.0,67633.0,1.45371474]
[1729576842394,0.000826,67634.0,67633.0,1.45271474]
[1729576843039,0.000826,67634.0,67633.0,1.45471474]
[1729576843517,0.000826,67634.0,67633.0,1.50068284]
[1729576844463,0.000826,67634.0,67633.0,1.49868284]
[1729576846766,0.000826,67634.0,67633.0,2.19868284]
[1729576847437,0.000826,67634.0,67633.0,2.20068284]
[1729576854849,0.000826,67635.0,67634.0,0.022]
[1729576855024,0.000826,67635.0,67634.0,2.0021371]
[1729576856491,0.000826,67635.0,67634.0,2.12909331]
[1729576856692,0.000826,67635.0,67634.0,2.1952645]
[1729576856902,0.000826,67635.0,67634.0,2.2092645]
[1729576857510,0.0075,67648.0,67647.0,0.257826]
[1729576857715,0.0075,67648.0,67647.0,1.28791492]
[1729576857921,0.0075,67648.0,67647.0,1.21533248]
[1729576858179,0.0075,67648.0,67647.0,1.22033248]
[1729576858405,0.0075,67648.0,67647.0,1.33328869]
[1729576858748,0.0075,67648.0,67647.0,1.34728869]
[1729576858949,0.0075,67648.0,67647.0,1.39325679]
[1729576859572,0.0075,67648.0,67647.0,1.29430058]
[1729576860007,0.0075,67648.0,67647.0,1.40725679]
[1729576860229,0.0075,67648.0,67647.0,1.29430058]
[1729576862287,0.0075,67648.0,67647.0,1.40725679]
[1729576863980,0.0075,67648.0,67647.0,1.29430058]
[1729576865861,0.0075,67648.0,67647.0,1.40725679]
[1729576866480,0.0075,67648.0,67647.0,1.41725679]
[1729576866690,0.0075,67648.0,67647.0,1.49915679]
[1729576866892,0.0075,67648.0,67647.0,1.52215679]
[1729576868819,0.0075,67648.0,67647.0,2.22215679]
[1729576870800,0.0075,67648.0,67647.0,2.31074258]
[1729576871263,0.0075,67648.0,67647.0,2.31274258]
[1729576871686,0.000826,67651.0,67650.0,0.69233142]
[1729576871906,0.000826,67651.0,67650.0,1.82481169]
[1729576872134,0.000826,67651.0,67650.0,2.31656892]
[1729576872349,0.000826,67651.0,67650.0,2.29438571]
[1729576872984,0.000826,67651.0,67650.0,2.30538571]
[1729576873209,0.000826,67651.0,67650.0,2.30738571]
[1729576873639,0.000826,67651.0,67650.0,2.30538571]
[1729576873858,0.000826,67651.0,67650.0,2.30738571]
[1729576874078,0.000826,67651.0,67650.0,2.31838571]
[1729576874300,0.000826,67651.0,67650.0,2.25397942]
[1729576874512,0.000826,67651.0,67650.0,2.32033093]
[1729576874992,0.000826,67651.0,67650.0,2.30533093]
[1729576875215,0.000826,67651.0,67650.0,2.22997942]
[1729576875448,0.000826,67651.0,67650.0,2.40926036]
[1729576875658,0.000826,67651.0,67650.0,2.29630415]
[1729576875864,0.000826,67651.0,67650.0,2.32430415]
[1729576876284,0.000826,67651.0,67650.0,2.24397942]
[1729576876724,0.000826,67651.0,67650.0,2.25797942]